[Event "*** Titled Tuesday Blitz"]
[Site "Chess.com"]
[Date "2018.11.06"]
[Round "6"]
[White "albi1999"]
[Black "mikhaillushenkov"]
[Result "1/2-1/2"]
[WhiteElo "2470"]
[BlackElo "2663"]
[TimeControl "180+2"]
[EndTime "14:22:16 PST"]
[Termination "Game drawn by agreement"]

1. d4 {[%clk 0:03:01.9]} 1... Nf6 {[%clk 0:02:58.5]} 2. c4 {[%clk 0:03:02.7]}
2... e6 {[%clk 0:02:57.4]} 3. g3 {[%clk 0:03:03.7]} 3... Bb4+ {[%clk 0:02:56.7]}
4. Bd2 {[%clk 0:03:04]} 4... c5 {[%clk 0:02:52.1]} 5. Bxb4 {[%clk 0:03:04.2]}
5... cxb4 {[%clk 0:02:54]} 6. Bg2 {[%clk 0:03:02.6]} 6... O-O {[%clk 0:02:53]}
7. a3 {[%clk 0:03:04.1]} 7... bxa3 {[%clk 0:02:52.1]} 8. Nxa3 {[%clk 0:03:03]}
8... Nc6 {[%clk 0:02:52.5]} 9. Nf3 {[%clk 0:03:03.4]} 9... b6 {[%clk 0:02:51.7]}
10. Nb5 {[%clk 0:02:59.2]} 10... Qe7 {[%clk 0:02:46]} 11. O-O {[%clk 0:02:45.7]}
11... a5 {[%clk 0:02:13.3]} 12. d5 {[%clk 0:02:32]} 12... exd5 {[%clk
0:02:11.5]} 13. cxd5 {[%clk 0:02:33.9]} 13... Nb4 {[%clk 0:02:11.8]} 14. d6
{[%clk 0:02:33.4]} 14... Qd8 {[%clk 0:02:12.5]} 15. Ne5 {[%clk 0:02:30.6]} 15...
Rb8 {[%clk 0:02:13.5]} 16. Rc1 {[%clk 0:02:19.3]} 16... Bb7 {[%clk 0:02:10.6]}
17. Bxb7 {[%clk 0:02:17.9]} 17... Rxb7 {[%clk 0:02:12.5]} 18. Qd4 {[%clk
0:02:17.2]} 18... h6 {[%clk 0:02:05.8]} 19. Rc7 {[%clk 0:02:16.6]} 19... Rb8
{[%clk 0:02:03.3]} 20. Rfc1 {[%clk 0:02:13.5]} 20... Na6 {[%clk 0:01:56.6]} 21.
R7c3 {[%clk 0:02:03.9]} 21... Nc5 {[%clk 0:01:57.5]} 22. Nc7 {[%clk 0:02:00.9]}
22... Nfe4 {[%clk 0:01:50.2]} 23. Re3 {[%clk 0:01:59.2]} 23... Ng5 {[%clk
0:01:50.9]} 24. Nd5 {[%clk 0:01:52.5]} 24... Nge6 {[%clk 0:01:50.6]} 25. Qg4
{[%clk 0:01:40.4]} 25... Qg5 {[%clk 0:01:47.9]} 26. Qxg5 {[%clk 0:01:38.9]}
26... hxg5 {[%clk 0:01:49.8]} 27. Rc4 {[%clk 0:01:37.4]} 27... Rb7 {[%clk
0:01:15.4]} 28. h4 {[%clk 0:01:36.3]} 28... f6 {[%clk 0:00:55.7]} 29. Ne7+
{[%clk 0:01:33.6]} 29... Kh7 {[%clk 0:00:56.8]} 30. hxg5 {[%clk 0:01:29.3]}
30... fxg5 {[%clk 0:00:58.7]} 31. N5g6 {[%clk 0:01:22.4]} 31... Rf6 {[%clk
0:00:57]} 32. Ne5 {[%clk 0:01:09.3]} 32... a4 {[%clk 0:00:48.9]} 33. Nd5 {[%clk
0:01:04.8]} 33... Rf8 {[%clk 0:00:44]} 34. g4 {[%clk 0:01:03.6]} 34... g6 {[%clk
0:00:42.6]} 35. Ne7 {[%clk 0:01:00.3]} 35... Rf4 {[%clk 0:00:43.2]} 36. Rh3+
{[%clk 0:00:58.6]} 36... Kg7 {[%clk 0:00:44.1]} 37. Rc1 {[%clk 0:00:31.2]} 37...
Re4 {[%clk 0:00:33]} 38. N7xg6 {[%clk 0:00:31.6]} 38... Rxe2 {[%clk 0:00:33.9]}
39. Kg2 {[%clk 0:00:27.2]} 39... Nf4+ {[%clk 0:00:31.6]} 40. Nxf4 {[%clk
0:00:28.2]} 40... gxf4 {[%clk 0:00:29.3]} 41. Nf3 {[%clk 0:00:18.1]} 41... Rxf2+
{[%clk 0:00:30.2]} 42. Kxf2 {[%clk 0:00:18.6]} 42... Nd3+ {[%clk 0:00:32.1]} 43.
Ke2 {[%clk 0:00:19.9]} 43... Nxc1+ {[%clk 0:00:34]} 44. Kd2 {[%clk 0:00:17.7]}
44... Nb3+ {[%clk 0:00:35.1]} 45. Kc3 {[%clk 0:00:18.5]} 45... Nc5 {[%clk
0:00:35.6]} 46. Ne5 {[%clk 0:00:18.1]} 46... Ne4+ {[%clk 0:00:33.8]} 47. Kd4
{[%clk 0:00:18.8]} 47... Nxd6 {[%clk 0:00:35]} 48. Kd5 {[%clk 0:00:20.2]} 48...
Nf7 {[%clk 0:00:31.9]} 49. Nxf7 {[%clk 0:00:20.7]} 49... Kxf7 {[%clk 0:00:33.8]}
50. Rf3 {[%clk 0:00:22.3]} 50... b5 {[%clk 0:00:34.1]} 51. Rxf4+ {[%clk
0:00:23.6]} 51... Kg6 {[%clk 0:00:33.8]} 52. Rb4 {[%clk 0:00:21.4]} 52... Kg5
{[%clk 0:00:34.8]} 53. Kc5 {[%clk 0:00:22.7]} 53... Ra7 {[%clk 0:00:24.3]} 54.
Kxb5 {[%clk 0:00:19.3]} 54... a3 {[%clk 0:00:25.3]} 55. bxa3 {[%clk 0:00:20]}
55... Rxa3 {[%clk 0:00:27.2]} 56. Rd4 {[%clk 0:00:21.3]} 56... Rg3 {[%clk
0:00:27.3]} 57. Rxd7 {[%clk 0:00:21.4]} 57... Rxg4 {[%clk 0:00:28.8]} 58. Rg7+
{[%clk 0:00:22.3]} 1/2-1/2

[Event "*** Titled Tuesday Blitz"]
[Site "Chess.com"]
[Date "2018.11.06"]
[Round "6"]
[White "Chessialist"]
[Black "dragosceres"]
[Result "1-0"]
[WhiteElo "2518"]
[BlackElo "2403"]
[TimeControl "180+2"]
[EndTime "14:22:18 PST"]
[Termination "Chessialist won by checkmate"]

1. e4 {[%clk 0:03:01.9]} 1... e5 {[%clk 0:03:00.1]} 2. Nf3 {[%clk 0:03:02.6]}
2... Nc6 {[%clk 0:03:01.1]} 3. Bb5 {[%clk 0:03:03.5]} 3... a6 {[%clk 0:03:00.9]}
4. Ba4 {[%clk 0:03:04.6]} 4... Nge7 {[%clk 0:03:02.1]} 5. c3 {[%clk 0:03:02.5]}
5... g6 {[%clk 0:03:01]} 6. O-O {[%clk 0:03:03.2]} 6... Bg7 {[%clk 0:03:01.8]}
7. d3 {[%clk 0:03:04.8]} 7... O-O {[%clk 0:03:01.9]} 8. Nbd2 {[%clk 0:03:05.8]}
8... b5 {[%clk 0:03:00.7]} 9. Bc2 {[%clk 0:03:06.8]} 9... d5 {[%clk 0:03:01.5]}
10. Re1 {[%clk 0:03:08]} 10... d4 {[%clk 0:02:53.9]} 11. cxd4 {[%clk 0:03:07.8]}
11... Nxd4 {[%clk 0:02:54.2]} 12. Nxd4 {[%clk 0:03:08.9]} 12... exd4 {[%clk
0:02:54.2]} 13. f4 {[%clk 0:03:08.2]} 13... c5 {[%clk 0:02:50.1]} 14. Nf3 {[%clk
0:03:06.4]} 14... Nc6 {[%clk 0:02:42.7]} 15. a4 {[%clk 0:03:02.5]} 15... Rb8
{[%clk 0:02:42.4]} 16. axb5 {[%clk 0:03:02.3]} 16... axb5 {[%clk 0:02:44.3]} 17.
Bd2 {[%clk 0:03:00.5]} 17... c4 {[%clk 0:02:43.6]} 18. h3 {[%clk 0:02:48.3]}
18... f5 {[%clk 0:02:29.3]} 19. exf5 {[%clk 0:02:40.4]} 19... Bxf5 {[%clk
0:02:27.6]} 20. dxc4 {[%clk 0:02:41]} 20... bxc4 {[%clk 0:02:29.5]} 21. Bxf5
{[%clk 0:02:41.7]} 21... Rxf5 {[%clk 0:02:30.3]} 22. Qc2 {[%clk 0:02:40.8]}
22... Qd5 {[%clk 0:02:28.3]} 23. Ra4 {[%clk 0:02:36.6]} 23... c3 {[%clk
0:02:17.9]} 24. bxc3 {[%clk 0:02:33.5]} 24... dxc3 {[%clk 0:02:19.8]} 25. Be3
{[%clk 0:02:08.9]} 25... Qb3 {[%clk 0:01:57.2]} 26. Qxb3+ {[%clk 0:02:08.1]}
26... Rxb3 {[%clk 0:01:59.1]} 27. Rc4 {[%clk 0:02:09.3]} 27... Nb4 {[%clk
0:01:47.1]} 28. Bc5 {[%clk 0:01:45]} 28... Nd3 {[%clk 0:01:43.9]} 29. Re8+
{[%clk 0:01:45.4]} 29... Kf7 {[%clk 0:01:45]} 30. Re7+ {[%clk 0:01:45.9]} 30...
Kg8 {[%clk 0:01:41.2]} 31. Bd4 {[%clk 0:01:27.9]} 31... Bf8 {[%clk 0:01:30.9]}
32. Rec7 {[%clk 0:01:20.7]} 32... Nxf4 {[%clk 0:01:28.2]} 33. Bxc3 {[%clk
0:01:04.8]} 33... Ne2+ {[%clk 0:01:28.1]} 34. Kf2 {[%clk 0:01:02.7]} 34... Nxc3
{[%clk 0:01:28.4]} 35. Rxc3 {[%clk 0:01:03.6]} 35... Rb2+ {[%clk 0:01:27.2]} 36.
Rc2 {[%clk 0:01:04.8]} 36... Rxc2+ {[%clk 0:01:26.7]} 37. Rxc2 {[%clk
0:01:05.8]} 37... Bc5+ {[%clk 0:01:25.3]} 38. Ke2 {[%clk 0:01:04.7]} 38... Kf7
{[%clk 0:01:25.7]} 39. Kd3 {[%clk 0:01:02.8]} 39... Be7 {[%clk 0:01:20.4]} 40.
Ke4 {[%clk 0:01:03.2]} 40... Ra5 {[%clk 0:01:17.6]} 41. Ne5+ {[%clk 0:01:00.6]}
41... Kg7 {[%clk 0:01:03]} 42. Rc7 {[%clk 0:01:01]} 42... Ra4+ {[%clk
0:00:58.2]} 43. Kd5 {[%clk 0:01:01.7]} 43... Kf6 {[%clk 0:00:47.4]} 44. Nc6
{[%clk 0:00:47.7]} 44... Bf8 {[%clk 0:00:33.4]} 45. Rxh7 {[%clk 0:00:38.4]}
45... Ra2 {[%clk 0:00:33.8]} 46. Rh4 {[%clk 0:00:38.8]} 46... Rxg2 {[%clk
0:00:30.4]} 47. Rf4+ {[%clk 0:00:39.4]} 47... Kg7 {[%clk 0:00:31.1]} 48. Ke6
{[%clk 0:00:40.6]} 48... Re2+ {[%clk 0:00:31.4]} 49. Ne5 {[%clk 0:00:41.6]}
49... Bc5 {[%clk 0:00:22.8]} 50. Rf7+ {[%clk 0:00:40.6]} 50... Kh6 {[%clk
0:00:21.5]} 51. Kd5 {[%clk 0:00:40.6]} 51... Bb4 {[%clk 0:00:16.1]} 52. h4
{[%clk 0:00:35.7]} 52... Bc3 {[%clk 0:00:12.2]} 53. Nd3 {[%clk 0:00:28.1]} 53...
Kh5 {[%clk 0:00:12.6]} 54. Nf4+ {[%clk 0:00:28.6]} 54... Kxh4 {[%clk 0:00:14]}
55. Nxe2 {[%clk 0:00:30.1]} 55... g5 {[%clk 0:00:15.9]} 56. Nxc3 {[%clk
0:00:31]} 56... g4 {[%clk 0:00:17.8]} 57. Ne4 {[%clk 0:00:32.4]} 57... g3 {[%clk
0:00:19.2]} 58. Rg7 {[%clk 0:00:34]} 58... Kh3 {[%clk 0:00:20.1]} 59. Rxg3+
{[%clk 0:00:34.7]} 59... Kh2 {[%clk 0:00:22]} 60. Kd4 {[%clk 0:00:36]} 60... Kh1
{[%clk 0:00:23.9]} 61. Ke3 {[%clk 0:00:37.6]} 61... Kh2 {[%clk 0:00:25.7]} 62.
Kf2 {[%clk 0:00:39.1]} 62... Kh1 {[%clk 0:00:27.6]} 63. Rh3# {[%clk 0:00:40.8]}
1-0

[Event "*** Titled Tuesday Blitz"]
[Site "Chess.com"]
[Date "2018.11.06"]
[Round "6"]
[White "JeremDev"]
[Black "tomozupan"]
[Result "0-1"]
[WhiteElo "2262"]
[BlackElo "2180"]
[TimeControl "180+2"]
[EndTime "14:22:21 PST"]
[Termination "tomozupan won by resignation"]

1. e4 {[%clk 0:02:59.4]} 1... e5 {[%clk 0:02:57.5]} 2. Nf3 {[%clk 0:02:59.9]}
2... Nc6 {[%clk 0:02:58.4]} 3. d4 {[%clk 0:02:58]} 3... exd4 {[%clk 0:02:58.8]}
4. Bc4 {[%clk 0:02:58.4]} 4... Bc5 {[%clk 0:02:58.3]} 5. O-O {[%clk 0:02:59]}
5... d6 {[%clk 0:02:55.7]} 6. h3 {[%clk 0:02:59.9]} 6... Nf6 {[%clk 0:02:55.9]}
7. c3 {[%clk 0:02:57.7]} 7... dxc3 {[%clk 0:02:55.1]} 8. Nxc3 {[%clk 0:02:56.4]}
8... O-O {[%clk 0:02:53.6]} 9. Bg5 {[%clk 0:02:54.9]} 9... h6 {[%clk 0:02:53.9]}
10. Bh4 {[%clk 0:02:49.5]} 10... Ne5 {[%clk 0:02:27.5]} 11. Nxe5 {[%clk
0:02:04.9]} 11... dxe5 {[%clk 0:02:27.7]} 12. Qf3 {[%clk 0:02:05.8]} 12... g5
{[%clk 0:02:12.7]} 13. Bg3 {[%clk 0:02:05.4]} 13... Qe7 {[%clk 0:02:01.5]} 14.
Rac1 {[%clk 0:01:37.2]} 14... c6 {[%clk 0:02:00.3]} 15. Rfd1 {[%clk 0:01:23.3]}
15... a5 {[%clk 0:01:58.2]} 16. Na4 {[%clk 0:01:11.5]} 16... Bd4 {[%clk
0:01:50.7]} 17. Rxd4 {[%clk 0:01:00.2]} 17... exd4 {[%clk 0:01:50.8]} 18. Nb6
{[%clk 0:01:00.4]} 18... Ra7 {[%clk 0:01:24.5]} 19. Bb8 {[%clk 0:01:00.1]} 19...
Ra6 {[%clk 0:00:47.4]} 20. Bxa6 {[%clk 0:00:59.1]} 20... bxa6 {[%clk 0:00:48.4]}
21. Rxc6 {[%clk 0:00:56.2]} 21... Be6 {[%clk 0:00:23.5]} 22. Bd6 {[%clk
0:00:52.6]} 22... Qb7 {[%clk 0:00:21.9]} 23. Bxf8 {[%clk 0:00:52.4]} 23... Qxc6
{[%clk 0:00:22.9]} 24. Qxf6 {[%clk 0:00:50.3]} 24... Kxf8 {[%clk 0:00:23.6]} 25.
Qxh6+ {[%clk 0:00:48.5]} 25... Ke8 {[%clk 0:00:19.8]} 26. Qh8+ {[%clk
0:00:46.6]} 26... Ke7 {[%clk 0:00:20.9]} 27. Qxd4 {[%clk 0:00:47.3]} 27... Qc1+
{[%clk 0:00:21.7]} 28. Kh2 {[%clk 0:00:47.4]} 28... Qf4+ {[%clk 0:00:20.5]} 29.
g3 {[%clk 0:00:48.1]} 29... Qf3 {[%clk 0:00:21.6]} 30. Nd5+ {[%clk 0:00:42]}
30... Bxd5 {[%clk 0:00:19.5]} 31. exd5 {[%clk 0:00:43]} 31... Kd6 {[%clk
0:00:19.2]} 32. Qb6+ {[%clk 0:00:35]} 32... Ke5 {[%clk 0:00:19.7]} 33. Qe3+
{[%clk 0:00:32.8]} 33... Qxe3 {[%clk 0:00:20.1]} 34. fxe3 {[%clk 0:00:33.7]}
34... Kxd5 {[%clk 0:00:20.3]} 35. Kg2 {[%clk 0:00:33.7]} 35... Ke4 {[%clk
0:00:21.3]} 36. Kf2 {[%clk 0:00:34.1]} 36... a4 {[%clk 0:00:20.8]} 37. g4 {[%clk
0:00:31.5]} 37... Kd3 {[%clk 0:00:20.5]} 38. Kf3 {[%clk 0:00:14.9]} 38... Kc2
{[%clk 0:00:21.1]} 39. b3 {[%clk 0:00:12.1]} 39... a3 {[%clk 0:00:18.1]} 40. Ke2
{[%clk 0:00:11.4]} 40... Kb2 {[%clk 0:00:19.2]} 41. Kd2 {[%clk 0:00:12.5]} 41...
Kxa2 {[%clk 0:00:19.5]} 42. Kc2 {[%clk 0:00:13.7]} 42... Ka1 {[%clk 0:00:04.1]}
43. b4 {[%clk 0:00:14]} 43... f6 {[%clk 0:00:04.2]} 44. e4 {[%clk 0:00:14.2]}
44... Ka2 {[%clk 0:00:04.8]} 45. e5 {[%clk 0:00:04.6]} 45... fxe5 {[%clk
0:00:05.3]} 46. Kc3 {[%clk 0:00:04.4]} 46... Kb1 {[%clk 0:00:05.7]} 47. b5
{[%clk 0:00:05.9]} 47... axb5 {[%clk 0:00:06.4]} 0-1

[Event "*** Titled Tuesday Blitz"]
[Site "Chess.com"]
[Date "2018.11.06"]
[Round "6"]
[White "ruvat"]
[Black "Keaton87"]
[Result "0-1"]
[WhiteElo "2313"]
[BlackElo "2470"]
[TimeControl "180+2"]
[EndTime "14:22:25 PST"]
[Termination "Keaton87 won by resignation"]

1. d4 {[%clk 0:03:01.9]} 1... Nf6 {[%clk 0:03:00.4]} 2. c4 {[%clk 0:03:02.5]}
2... e6 {[%clk 0:03:01.7]} 3. g3 {[%clk 0:03:02.8]} 3... d5 {[%clk 0:03:02.6]}
4. Nf3 {[%clk 0:03:03.5]} 4... c5 {[%clk 0:03:03.4]} 5. cxd5 {[%clk 0:03:03.3]}
5... Nxd5 {[%clk 0:03:03.3]} 6. Bg2 {[%clk 0:03:03.4]} 6... Be7 {[%clk
0:03:03.6]} 7. O-O {[%clk 0:03:03.6]} 7... O-O {[%clk 0:03:04.8]} 8. dxc5 {[%clk
0:03:04]} 8... Bxc5 {[%clk 0:03:05.3]} 9. a3 {[%clk 0:03:04.2]} 9... Nc6 {[%clk
0:03:05.2]} 10. b4 {[%clk 0:03:03.8]} 10... Be7 {[%clk 0:03:05.8]} 11. Bb2
{[%clk 0:03:04.6]} 11... Bf6 {[%clk 0:03:04.6]} 12. Qb3 {[%clk 0:03:05.1]} 12...
Bxb2 {[%clk 0:03:01.6]} 13. Qxb2 {[%clk 0:03:07]} 13... Qf6 {[%clk 0:03:02]} 14.
Qxf6 {[%clk 0:03:07.2]} 14... gxf6 {[%clk 0:03:03.7]} 15. e4 {[%clk 0:02:45.9]}
15... Nb6 {[%clk 0:03:03.8]} 16. Nbd2 {[%clk 0:02:44.4]} 16... Ne5 {[%clk
0:03:01.3]} 17. Nxe5 {[%clk 0:02:33.8]} 17... fxe5 {[%clk 0:03:03.2]} 18. Rfc1
{[%clk 0:02:25.3]} 18... Bd7 {[%clk 0:03:02.7]} 19. Rc7 {[%clk 0:02:17.1]} 19...
Bc6 {[%clk 0:03:03]} 20. Nb3 {[%clk 0:02:09.7]} 20... Rae8 {[%clk 0:02:57.4]}
21. Na5 {[%clk 0:02:07.9]} 21... Na8 {[%clk 0:02:57.4]} 22. Rxc6 {[%clk
0:02:01]} 22... bxc6 {[%clk 0:02:58]} 23. Nxc6 {[%clk 0:02:02.6]} 23... a6
{[%clk 0:02:56.8]} 24. Bf1 {[%clk 0:02:01.9]} 24... Nc7 {[%clk 0:02:57.3]} 25.
a4 {[%clk 0:01:48.3]} 25... Kg7 {[%clk 0:02:25.1]} 26. b5 {[%clk 0:01:39.3]}
26... axb5 {[%clk 0:02:25.9]} 27. axb5 {[%clk 0:01:40.3]} 27... Ra8 {[%clk
0:02:27.4]} 28. Rxa8 {[%clk 0:01:38.3]} 28... Nxa8 {[%clk 0:02:29.3]} 29. Nxe5
{[%clk 0:01:27.2]} 29... Rd8 {[%clk 0:02:29.4]} 30. Nc6 {[%clk 0:01:12.5]} 30...
Rd1 {[%clk 0:02:29]} 31. Kg2 {[%clk 0:01:11.7]} 31... Rb1 {[%clk 0:02:29.7]} 32.
g4 {[%clk 0:00:34.3]} 32... Nc7 {[%clk 0:02:27.8]} 33. Nd4 {[%clk 0:00:28.8]}
33... Rb4 {[%clk 0:02:26.8]} 34. b6 {[%clk 0:00:27.6]} 34... Rxb6 {[%clk
0:02:25.8]} 35. Kf3 {[%clk 0:00:14.7]} 35... Rb4 {[%clk 0:02:26.5]} 36. Nc6
{[%clk 0:00:13]} 36... Rb1 {[%clk 0:02:10.7]} 37. Bd3 {[%clk 0:00:11.4]} 37...
Rb3 {[%clk 0:02:11.1]} 38. Ke2 {[%clk 0:00:11.6]} 38... Kf6 {[%clk 0:02:08]} 39.
f4 {[%clk 0:00:11.8]} 39... Nb5 {[%clk 0:02:00.4]} 40. Bxb5 {[%clk 0:00:10]}
40... Rxb5 {[%clk 0:02:02.3]} 41. g5+ {[%clk 0:00:09.5]} 41... Kg7 {[%clk
0:02:01.3]} 42. Ne5 {[%clk 0:00:10.3]} 42... Rb2+ {[%clk 0:02:01.5]} 43. Kf3
{[%clk 0:00:11.4]} 43... Rxh2 {[%clk 0:02:02.5]} 44. Ng4 {[%clk 0:00:12.6]}
44... Rh3+ {[%clk 0:02:02.7]} 45. Kf2 {[%clk 0:00:13.8]} 45... Rb3 {[%clk
0:01:59.3]} 46. Kg2 {[%clk 0:00:13.6]} 46... Kg6 {[%clk 0:01:50.5]} 47. Kf2
{[%clk 0:00:13.3]} 47... Kg7 {[%clk 0:01:34.7]} 48. Kg2 {[%clk 0:00:12.5]} 48...
Kf8 {[%clk 0:01:35.9]} 49. Nf6 {[%clk 0:00:11.8]} 49... Kg7 {[%clk 0:01:29.2]}
50. Ng4 {[%clk 0:00:11.8]} 50... Ra3 {[%clk 0:01:31.1]} 51. Nf6 {[%clk
0:00:11.6]} 51... Kg6 {[%clk 0:01:31.8]} 52. Ng4 {[%clk 0:00:11.3]} 52... Kh5
{[%clk 0:01:29]} 53. Ne5 {[%clk 0:00:10.3]} 53... Kh4 {[%clk 0:01:28.1]} 54.
Nxf7 {[%clk 0:00:08.8]} 54... Kg4 {[%clk 0:01:28.6]} 55. Nd8 {[%clk 0:00:07.4]}
55... Ra2+ {[%clk 0:01:26.1]} 56. Kf1 {[%clk 0:00:07.6]} 56... Ra6 {[%clk
0:01:09.4]} 57. f5 {[%clk 0:00:07]} 57... exf5 {[%clk 0:01:09.8]} 58. e5 {[%clk
0:00:04.5]} 58... Kxg5 {[%clk 0:01:02.4]} 59. Kf2 {[%clk 0:00:05.3]} 59... f4
{[%clk 0:00:49.7]} 60. Kf3 {[%clk 0:00:05.5]} 60... Kf5 {[%clk 0:00:51]} 61. e6
{[%clk 0:00:05.7]} 61... Ra3+ {[%clk 0:00:52]} 62. Kf2 {[%clk 0:00:06.1]} 62...
Kf6 {[%clk 0:00:53.2]} 63. Kg2 {[%clk 0:00:05.6]} 63... Ke7 {[%clk 0:00:51.6]}
64. Nf7 {[%clk 0:00:04.4]} 64... Rg3+ {[%clk 0:00:47]} 65. Kf2 {[%clk
0:00:04.2]} 65... Kxe6 {[%clk 0:00:48.4]} 0-1

[Event "*** Titled Tuesday Blitz"]
[Site "Chess.com"]
[Date "2018.11.06"]
[Round "6"]
[White "Denis_Makhnyov"]
[Black "maximlavrov"]
[Result "0-1"]
[WhiteElo "2788"]
[BlackElo "2600"]
[TimeControl "180+2"]
[EndTime "14:22:40 PST"]
[Termination "maximlavrov won by checkmate"]

1. d4 {[%clk 0:03:01.9]} 1... g6 {[%clk 0:03:00]} 2. Nf3 {[%clk 0:03:01.2]} 2...
Bg7 {[%clk 0:03:01]} 3. Bf4 {[%clk 0:03:02.8]} 3... d6 {[%clk 0:03:02]} 4. e3
{[%clk 0:03:04]} 4... Nf6 {[%clk 0:03:03.1]} 5. h3 {[%clk 0:03:05.5]} 5... O-O
{[%clk 0:03:03.9]} 6. Be2 {[%clk 0:03:06.9]} 6... c5 {[%clk 0:03:04.4]} 7. Nbd2
{[%clk 0:03:05.1]} 7... cxd4 {[%clk 0:03:04]} 8. exd4 {[%clk 0:03:06.2]} 8...
Nc6 {[%clk 0:03:04.7]} 9. c3 {[%clk 0:03:04.7]} 9... Qc7 {[%clk 0:03:04.9]} 10.
O-O {[%clk 0:03:04.4]} 10... e5 {[%clk 0:03:04.6]} 11. dxe5 {[%clk 0:03:04.3]}
11... dxe5 {[%clk 0:03:05.4]} 12. Bh2 {[%clk 0:03:05.8]} 12... Be6 {[%clk
0:03:01.8]} 13. Nc4 {[%clk 0:03:03.1]} 13... Rad8 {[%clk 0:02:58.3]} 14. Qc1
{[%clk 0:03:03.5]} 14... Nd5 {[%clk 0:02:58.5]} 15. Re1 {[%clk 0:02:50.1]} 15...
f6 {[%clk 0:02:43.1]} 16. Bf1 {[%clk 0:02:41.5]} 16... Bf7 {[%clk 0:02:43.5]}
17. Nd4 {[%clk 0:02:14.7]} 17... Rfe8 {[%clk 0:02:38.2]} 18. Nxc6 {[%clk
0:02:14.7]} 18... Qxc6 {[%clk 0:02:38.4]} 19. a4 {[%clk 0:01:59.5]} 19... b6
{[%clk 0:02:34]} 20. Ne3 {[%clk 0:01:55]} 20... Nc7 {[%clk 0:02:28.4]} 21. a5
{[%clk 0:01:46]} 21... b5 {[%clk 0:02:27.5]} 22. Be2 {[%clk 0:01:37]} 22... a6
{[%clk 0:02:22.3]} 23. c4 {[%clk 0:01:14.8]} 23... bxc4 {[%clk 0:02:21.3]} 24.
Nxc4 {[%clk 0:01:10.9]} 24... Ne6 {[%clk 0:02:17.9]} 25. Nb6 {[%clk 0:01:10.1]}
25... Qb7 {[%clk 0:02:16.8]} 26. Bc4 {[%clk 0:00:46]} 26... Nd4 {[%clk
0:02:09.9]} 27. Bxf7+ {[%clk 0:00:46.9]} 27... Qxf7 {[%clk 0:02:11.2]} 28. Ra3
{[%clk 0:00:46]} 28... Bf8 {[%clk 0:02:07.5]} 29. Ra4 {[%clk 0:00:40.9]} 29...
Qb3 {[%clk 0:02:08]} 30. Qc4+ {[%clk 0:00:35.8]} 30... Qxc4 {[%clk 0:02:08.5]}
31. Rxc4 {[%clk 0:00:37.7]} 31... Nb3 {[%clk 0:02:09.2]} 32. Ra4 {[%clk
0:00:25.4]} 32... Nxa5 {[%clk 0:01:48.3]} 33. Rxa5 {[%clk 0:00:24.4]} 33... Bb4
{[%clk 0:01:49.2]} 34. Raa1 {[%clk 0:00:25.6]} 34... Bxe1 {[%clk 0:01:50]} 35.
Rxe1 {[%clk 0:00:27.5]} 35... Rd4 {[%clk 0:01:51.2]} 36. b3 {[%clk 0:00:20.2]}
36... Rb8 {[%clk 0:01:51.9]} 37. Nc4 {[%clk 0:00:21.6]} 37... Rxb3 {[%clk
0:01:52.9]} 38. Ne3 {[%clk 0:00:23.1]} 38... a5 {[%clk 0:01:52]} 39. Ng4 {[%clk
0:00:24.3]} 39... Kf7 {[%clk 0:01:51.1]} 40. Nxf6 {[%clk 0:00:25.5]} 40... Rdb4
{[%clk 0:01:41.7]} 41. Bxe5 {[%clk 0:00:24.6]} 41... Rb1 {[%clk 0:01:42.6]} 42.
Rxb1 {[%clk 0:00:26]} 42... Rxb1+ {[%clk 0:01:44]} 43. Kh2 {[%clk 0:00:27.7]}
43... Ke6 {[%clk 0:01:38.8]} 44. f4 {[%clk 0:00:28.4]} 44... h5 {[%clk
0:01:34.3]} 45. Ne4 {[%clk 0:00:28.7]} 45... Rb4 {[%clk 0:01:34.9]} 46. Nc5+
{[%clk 0:00:24.4]} 46... Kd5 {[%clk 0:01:32.7]} 47. Nd3 {[%clk 0:00:25.7]} 47...
Rb3 {[%clk 0:01:32.2]} 48. Nc1 {[%clk 0:00:26.9]} 48... Re3 {[%clk 0:01:28.3]}
49. Na2 {[%clk 0:00:24.9]} 49... Kc4 {[%clk 0:01:29]} 50. Kg1 {[%clk 0:00:26]}
50... a4 {[%clk 0:01:21.4]} 51. Kf2 {[%clk 0:00:27.2]} 51... Rb3 {[%clk
0:01:22.9]} 52. Ke2 {[%clk 0:00:25.9]} 52... a3 {[%clk 0:01:21.5]} 53. Nc1
{[%clk 0:00:25.6]} 53... Rb2+ {[%clk 0:01:18.3]} 54. Kf3 {[%clk 0:00:25.5]}
54... Rb1 {[%clk 0:01:19.7]} 55. Ne2 {[%clk 0:00:25.5]} 55... a2 {[%clk
0:01:18.8]} 56. g4 {[%clk 0:00:22.6]} 56... h4 {[%clk 0:01:15.7]} 57. g5 {[%clk
0:00:21.5]} 57... Kd3 {[%clk 0:01:16.8]} 58. f5 {[%clk 0:00:20.4]} 58... Rf1+
{[%clk 0:01:07.4]} 59. Kg2 {[%clk 0:00:21.8]} 59... Rxf5 {[%clk 0:01:07.4]} 60.
Nc1+ {[%clk 0:00:19.6]} 60... Ke3 {[%clk 0:01:05.5]} 61. Ba1 {[%clk 0:00:13.8]}
61... Rxg5+ {[%clk 0:01:06.2]} 62. Kf1 {[%clk 0:00:15.3]} 62... Rc5 {[%clk
0:01:00.8]} 63. Nxa2 {[%clk 0:00:15.8]} 63... Ra5 {[%clk 0:01:01.8]} 64. Bf6
{[%clk 0:00:17.3]} 64... Rxa2 {[%clk 0:01:01.4]} 65. Bxh4 {[%clk 0:00:18.5]}
65... Kf3 {[%clk 0:01:02.7]} 66. Kg1 {[%clk 0:00:19.7]} 66... g5 {[%clk
0:00:59.2]} 67. Be1 {[%clk 0:00:16.6]} 67... Ra1 {[%clk 0:01:00.5]} 68. Kf1
{[%clk 0:00:17.5]} 68... Rb1 {[%clk 0:01:02]} 69. h4 {[%clk 0:00:18.6]} 69... g4
{[%clk 0:01:03.3]} 70. Kg1 {[%clk 0:00:20.5]} 70... g3 {[%clk 0:01:04.7]} 71.
Kf1 {[%clk 0:00:21.5]} 71... g2+ {[%clk 0:01:05.8]} 72. Kg1 {[%clk 0:00:23.4]}
72... Rxe1+ {[%clk 0:01:06.9]} 73. Kh2 {[%clk 0:00:25.3]} 73... Rh1# {[%clk
0:01:08.3]} 0-1